[Event "Titled Tuesday Blitz February 07 Early 2023"]
[White "EREBUNI91"]
[Black "Buscar, Michael"]
[BlackFideId "2603616"]
[WhiteElo "2666"]
[BlackElo "2041"]
[Result "1-0"]
[Round "02"]
[TimeControl "180+2"]
[Date "2023.02.07"]
[WhiteClock "0:00:35"]
[BlackClock "0:00:42"]

1. e4 {[%clk 0:03:00]}  c5 {[%clk 0:02:59]} 2. Nc3 {[%clk 0:02:59]}  g6 {[%clk 0:02:58]} 3. d4 {[%clk 0:02:57]}  cxd4 {[%clk 0:02:56]} 4. Qxd4 {[%clk 0:02:58]}  Nf6 {[%clk 0:02:57]} 5. Be3 {[%clk 0:02:56]}  Nc6 {[%clk 0:02:57]} 6. Qd2 {[%clk 0:02:55]}  Bg7 {[%clk 0:02:53]} 7. f3 {[%clk 0:02:55]}  d6 {[%clk 0:02:52]} 8. O-O-O {[%clk 0:02:55]}  O-O {[%clk 0:02:50]} 9. Bc4 {[%clk 0:02:52]}  Be6 {[%clk 0:02:50]} 10. Bxe6 {[%clk 0:02:50]}  fxe6 {[%clk 0:02:51]} 11. Nge2 {[%clk 0:02:48]}  Na5 {[%clk 0:02:48]} 12. Bh6 {[%clk 0:02:28]}  Nc4 {[%clk 0:02:46]} 13. Qg5 {[%clk 0:02:27]}  Qa5 {[%clk 0:02:40]} 14. Kb1 {[%clk 0:02:00]}  Qb4 {[%clk 0:02:31]} 15. b3 {[%clk 0:01:56]}  Rac8 {[%clk 0:02:28]} 16. Bxg7 {[%clk 0:01:53]}  Kxg7 {[%clk 0:02:28]} 17. h4 {[%clk 0:01:29]}  Rc5 {[%clk 0:02:26]} 18. Qc1 {[%clk 0:01:20]}  Rfc8 {[%clk 0:02:26]} 19. Rd3 {[%clk 0:01:00]}  Na3+ {[%clk 0:02:08]} 20. Kb2 {[%clk 0:00:59]}  Nc4+ {[%clk 0:01:56]} 21. Ka1 {[%clk 0:00:58]}  Ne5 {[%clk 0:01:51]} 22. Re3 {[%clk 0:00:57]}  Rxc3 {[%clk 0:01:47]} 23. Nxc3 {[%clk 0:00:55]}  Rxc3 {[%clk 0:01:47]} 24. Qe1 {[%clk 0:00:55]}  Rc4 {[%clk 0:01:12]} 25. bxc4 {[%clk 0:00:52]}  Qxc4 {[%clk 0:01:13]} 26. Qc3 {[%clk 0:00:50]}  Qa4 {[%clk 0:01:10]} 27. Rb1 {[%clk 0:00:47]}  b6 {[%clk 0:00:52]} 28. g4 {[%clk 0:00:42]}  Kf7 {[%clk 0:00:45]} 29. g5 {[%clk 0:00:37]}  Nfd7 {[%clk 0:00:43]} 30. f4 {[%clk 0:00:36]}  Nc4 {[%clk 0:00:42]} 31. Rb4 {[%clk 0:00:35]} 1-0


[Site "https://www.chess.com"]

[Event "Titled Tuesday Blitz February 07 Early 2023"]
[White "Mrudul Dehankar"]
[Black "Gascon Del Nogal, Jose Rafael"]
[WhiteFideId "25096990"]
[BlackFideId "3902463"]
[WhiteElo "2030"]
[BlackElo "2459"]
[Result "0-1"]
[Round "02"]
[TimeControl "180+2"]
[Date "2023.02.07"]
[WhiteClock "0:00:02"]
[BlackClock "0:00:04"]

1. e4 {[%clk 0:02:59]}  c5 {[%clk 0:03:00]} 2. Nf3 {[%clk 0:02:58]}  d6 {[%clk 0:03:00]} 3. d4 {[%clk 0:02:58]}  cxd4 {[%clk 0:03:00]} 4. Nxd4 {[%clk 0:02:58]}  Nf6 {[%clk 0:03:01]} 5. Nc3 {[%clk 0:02:59]}  Nc6 {[%clk 0:03:01]} 6. Bg5 {[%clk 0:02:58]}  e6 {[%clk 0:03:01]} 7. Qd2 {[%clk 0:02:58]}  a6 {[%clk 0:03:01]} 8. O-O-O {[%clk 0:02:58]}  Bd7 {[%clk 0:03:02]} 9. f4 {[%clk 0:02:56]}  Be7 {[%clk 0:03:01]} 10. Nf3 {[%clk 0:02:55]}  b5 {[%clk 0:03:01]} 11. e5 {[%clk 0:02:51]}  b4 {[%clk 0:03:01]} 12. exf6 {[%clk 0:02:46]}  bxc3 {[%clk 0:03:00]} 13. Qxc3 {[%clk 0:02:46]}  gxf6 {[%clk 0:03:01]} 14. Kb1 {[%clk 0:02:46]}  Rg8 {[%clk 0:02:56]} 15. Bh4 {[%clk 0:02:45]}  Rb8 {[%clk 0:02:14]} 16. Bd3 {[%clk 0:02:36]}  Rg4 {[%clk 0:02:13]} 17. g3 {[%clk 0:02:14]}  d5 {[%clk 0:01:53]} 18. Bxh7 {[%clk 0:02:06]}  Rxh4 {[%clk 0:01:35]} 19. gxh4 {[%clk 0:01:51]}  Bb4 {[%clk 0:01:33]} 20. Qe3 {[%clk 0:01:45]}  Qa5 {[%clk 0:01:31]} 21. Rd3 {[%clk 0:01:31]}  Bc5 {[%clk 0:01:25]} 22. Qe2 {[%clk 0:01:10]}  Nb4 {[%clk 0:01:12]} 23. Ra3 {[%clk 0:01:05]}  Qb6 {[%clk 0:01:11]} 24. Rb3 {[%clk 0:01:04]}  Ba4 {[%clk 0:01:11]} 25. h5 {[%clk 0:00:13]}  Bxb3 {[%clk 0:01:10]} 26. cxb3 {[%clk 0:00:14]}  Qd6 {[%clk 0:00:59]} 27. Rc1 {[%clk 0:00:11]}  a5 {[%clk 0:00:38]} 28. h6 {[%clk 0:00:11]}  Ke7 {[%clk 0:00:30]} 29. Bd3 {[%clk 0:00:09]}  Bb6 {[%clk 0:00:05]} 30. h7 {[%clk 0:00:07]}  Qxf4 {[%clk 0:00:04]} 31. a3 {[%clk 0:00:06]}  Nxd3 {[%clk 0:00:04]} 32. Qxd3 {[%clk 0:00:06]}  Qe4 {[%clk 0:00:05]} 33. Qxe4 {[%clk 0:00:03]}  dxe4 {[%clk 0:00:06]} 34. Nd2 {[%clk 0:00:04]}  Be3 {[%clk 0:00:04]} 35. Rg1 {[%clk 0:00:01]}  Rh8 {[%clk 0:00:04]} 36. Nxe4 {[%clk 0:00:02]}  Rxh7 {[%clk 0:00:04]} 37. Ng3 {[%clk 0:00:01]}  Rxh2 {[%clk 0:00:04]} 38. Re1 {[%clk 0:00:02]}  Bd4 {[%clk 0:00:04]} 39. Ne4 {[%clk 0:00:02]}  Rxb2+ {[%clk 0:00:03]} 40. Kc1 {[%clk 0:00:02]}  Ra2 {[%clk 0:00:04]} 41. Kb1 {[%clk 0:00:02]}  Ra1+ {[%clk 0:00:04]} 0-1


[Site "https://www.chess.com"]

[Event "Titled Tuesday Blitz February 07 Early 2023"]
[White "Semenenko, Dmytry"]
[Black "Martinez Ramirez, Lennis"]
[WhiteFideId "14118645"]
[BlackFideId "3509079"]
[WhiteElo "2113"]
[BlackElo "2426"]
[Result "0-1"]
[Round "02"]
[TimeControl "180+2"]
[Date "2023.02.07"]
[WhiteClock "0:02:50"]
[BlackClock "0:02:49"]

1. Nf3 {[%clk 0:03:00]}  d5 {[%clk 0:02:57]} 2. c4 {[%clk 0:03:00]}  Nc6 {[%clk 0:02:57]} 3. cxd5 {[%clk 0:03:00]}  Qxd5 {[%clk 0:02:58]} 4. Nc3 {[%clk 0:03:00]}  Qh5 {[%clk 0:02:58]} 5. d4 {[%clk 0:02:59]}  Bg4 {[%clk 0:02:57]} 6. e3 {[%clk 0:02:57]}  O-O-O {[%clk 0:02:57]} 7. Be2 {[%clk 0:02:55]}  e5 {[%clk 0:02:57]} 8. d5 {[%clk 0:02:53]}  e4 {[%clk 0:02:57]} 9. dxc6 {[%clk 0:02:52]}  Rxd1+ {[%clk 0:02:53]} 10. Nxd1 {[%clk 0:02:50]}  exf3 {[%clk 0:02:53]} 11. cxb7+ {[%clk 0:02:49]}  Kxb7 {[%clk 0:02:51]} 12. gxf3 {[%clk 0:02:50]}  Bxf3 {[%clk 0:02:49]} 0-1


[Site "https://www.chess.com"]

[Event "Titled Tuesday Blitz February 07 Early 2023"]
[White "Zia, Tahsin Tajwar"]
[Black "Flores Quillas, Diego Saul Rodri"]
[WhiteFideId "10211888"]
[BlackFideId "3822508"]
[WhiteElo "2315"]
[BlackElo "2359"]
[Result "0-1"]
[Round "02"]
[TimeControl "180+2"]
[Date "2023.02.07"]
[WhiteClock "0:00:03"]
[BlackClock "0:00:06"]

1. d4 {[%clk 0:02:53]}  Nf6 {[%clk 0:02:58]} 2. c4 {[%clk 0:02:49]}  c5 {[%clk 0:02:54]} 3. d5 {[%clk 0:02:49]}  e6 {[%clk 0:02:53]} 4. Nc3 {[%clk 0:02:50]}  exd5 {[%clk 0:02:51]} 5. cxd5 {[%clk 0:02:51]}  d6 {[%clk 0:02:48]} 6. g3 {[%clk 0:02:50]}  g6 {[%clk 0:02:47]} 7. Bg2 {[%clk 0:02:50]}  Bg7 {[%clk 0:02:47]} 8. Nf3 {[%clk 0:02:51]}  O-O {[%clk 0:02:48]} 9. O-O {[%clk 0:02:51]}  a6 {[%clk 0:02:33]} 10. a4 {[%clk 0:02:51]}  Re8 {[%clk 0:02:32]} 11. Bf4 {[%clk 0:02:49]}  Ne4 {[%clk 0:02:19]} 12. Nxe4 {[%clk 0:02:48]}  Rxe4 {[%clk 0:02:20]} 13. Nd2 {[%clk 0:02:49]}  Rb4 {[%clk 0:02:19]} 14. Ra2 {[%clk 0:02:45]}  Qe7 {[%clk 0:01:43]} 15. b3 {[%clk 0:02:29]}  Nd7 {[%clk 0:01:41]} 16. Nc4 {[%clk 0:02:20]}  Ne5 {[%clk 0:01:42]} 17. Bd2 {[%clk 0:01:56]}  Nxc4 {[%clk 0:01:30]} 18. Bxb4 {[%clk 0:01:42]}  Ne3 {[%clk 0:01:29]} 19. fxe3 {[%clk 0:01:30]}  Qxe3+ {[%clk 0:01:26]} 20. Kh1 {[%clk 0:01:27]}  cxb4 {[%clk 0:01:26]} 21. Rc2 {[%clk 0:01:19]}  Bc3 {[%clk 0:01:25]} 22. Rf3 {[%clk 0:01:17]}  Qe5 {[%clk 0:01:22]} 23. Rf4 {[%clk 0:00:54]}  Bd7 {[%clk 0:00:59]} 24. e4 {[%clk 0:00:49]}  b5 {[%clk 0:00:57]} 25. a5 {[%clk 0:00:47]}  Qe7 {[%clk 0:00:48]} 26. Qf1 {[%clk 0:00:40]}  f6 {[%clk 0:00:45]} 27. Re2 {[%clk 0:00:35]}  Re8 {[%clk 0:00:43]} 28. h4 {[%clk 0:00:23]}  Qd8 {[%clk 0:00:40]} 29. Bh3 {[%clk 0:00:18]}  Bxh3 {[%clk 0:00:35]} 30. Qxh3 {[%clk 0:00:18]}  Qxa5 {[%clk 0:00:34]} 31. Qd7 {[%clk 0:00:18]}  Qd8 {[%clk 0:00:34]} 32. Qb7 {[%clk 0:00:16]}  Qc8 {[%clk 0:00:31]} 33. Qa7 {[%clk 0:00:14]}  Be5 {[%clk 0:00:24]} 34. Rf3 {[%clk 0:00:11]}  Qa8 {[%clk 0:00:12]} 35. Qf2 {[%clk 0:00:10]}  a5 {[%clk 0:00:12]} 36. h5 {[%clk 0:00:10]}  a4 {[%clk 0:00:12]} 37. h6 {[%clk 0:00:09]}  Kf7 {[%clk 0:00:11]} 38. Re1 {[%clk 0:00:07]}  a3 {[%clk 0:00:10]} 39. Rf1 {[%clk 0:00:07]}  Qd8 {[%clk 0:00:09]} 40. g4 {[%clk 0:00:08]}  g5 {[%clk 0:00:07]} 41. Rf5 {[%clk 0:00:07]}  Kg6 {[%clk 0:00:07]} 42. Qf3 {[%clk 0:00:06]}  a2 {[%clk 0:00:06]} 43. Qh3 {[%clk 0:00:06]}  Kf7 {[%clk 0:00:06]} 44. Qh5+ {[%clk 0:00:06]}  Kg8 {[%clk 0:00:06]} 45. Qh3 {[%clk 0:00:04]}  a1=Q {[%clk 0:00:05]} 46. Rxa1 {[%clk 0:00:04]}  Bxa1 {[%clk 0:00:05]} 47. Qf3 {[%clk 0:00:04]}  Be5 {[%clk 0:00:06]} 48. Kg2 {[%clk 0:00:04]}  Qc8 {[%clk 0:00:07]} 49. Kh3 {[%clk 0:00:05]}  Qc3 {[%clk 0:00:07]} 50. Kg2 {[%clk 0:00:02]}  Qxf3+ {[%clk 0:00:06]} 51. Rxf3 {[%clk 0:00:03]}  Rc8 {[%clk 0:00:06]} 0-1


[Site "https://www.chess.com"]

[Event "Titled Tuesday Blitz February 07 Early 2023"]
[White "Fernandez Siles, Luis"]
[Black "Martynov, Pavel"]
[WhiteFideId "2209420"]
[BlackFideId "4101260"]
[WhiteElo "2218"]
[BlackElo "2414"]
[Result "0-1"]
[Round "02"]
[TimeControl "180+2"]
[Date "2023.02.07"]
[WhiteClock "0:01:01"]
[BlackClock "0:00:47"]

1. d4 {[%clk 0:03:00]}  d5 {[%clk 0:02:59]} 2. c4 {[%clk 0:03:00]}  e6 {[%clk 0:02:59]} 3. Nc3 {[%clk 0:02:59]}  c5 {[%clk 0:02:59]} 4. e3 {[%clk 0:02:58]}  Nf6 {[%clk 0:02:57]} 5. Nf3 {[%clk 0:02:58]}  Nc6 {[%clk 0:02:58]} 6. a3 {[%clk 0:02:58]}  a6 {[%clk 0:02:58]} 7. Bd3 {[%clk 0:02:53]}  Bd6 {[%clk 0:02:57]} 8. O-O {[%clk 0:02:51]}  O-O {[%clk 0:02:57]} 9. Qe2 {[%clk 0:02:50]}  dxc4 {[%clk 0:02:48]} 10. Bxc4 {[%clk 0:02:49]}  b5 {[%clk 0:02:49]} 11. Ba2 {[%clk 0:02:47]}  Bb7 {[%clk 0:02:41]} 12. Rd1 {[%clk 0:02:45]}  c4 {[%clk 0:02:41]} 13. e4 {[%clk 0:02:43]}  Bb8 {[%clk 0:02:14]} 14. Bg5 {[%clk 0:02:40]}  h6 {[%clk 0:01:24]} 15. Bh4 {[%clk 0:02:39]}  g5 {[%clk 0:01:24]} 16. Nxg5 {[%clk 0:02:32]}  hxg5 {[%clk 0:01:25]} 17. Bxg5 {[%clk 0:02:33]}  Nxd4 {[%clk 0:01:25]} 18. Qe3 {[%clk 0:02:10]}  e5 {[%clk 0:01:24]} 19. Qg3 {[%clk 0:02:04]}  Nxe4 {[%clk 0:01:11]} 20. Rxd4 {[%clk 0:01:15]}  exd4 {[%clk 0:00:58]} 21. Nxe4 {[%clk 0:01:06]}  Bxg3 {[%clk 0:00:56]} 22. Bxd8 {[%clk 0:01:06]}  Bxe4 {[%clk 0:00:48]} 23. hxg3 {[%clk 0:01:01]}  Rfxd8 {[%clk 0:00:47]} 0-1


[Site "https://www.chess.com"]

[Event "Titled Tuesday Blitz February 07 Early 2023"]
[White "Bodnaruk, Anastasia"]
[Black "Babikov, Ivan"]
[WhiteFideId "4181751"]
[BlackFideId "4161106"]
[WhiteElo "2350"]
[BlackElo "2239"]
[Result "0-1"]
[Round "02"]
[TimeControl "180+2"]
[Date "2023.02.07"]
[WhiteClock "0:01:23"]
[BlackClock "0:01:13"]

1. e4 {[%clk 0:03:00]}  c5 {[%clk 0:02:16]} 2. Nc3 {[%clk 0:02:59]}  d6 {[%clk 0:02:14]} 3. Nge2 {[%clk 0:02:57]}  Nc6 {[%clk 0:02:15]} 4. d4 {[%clk 0:02:57]}  cxd4 {[%clk 0:02:15]} 5. Nxd4 {[%clk 0:02:58]}  Nxd4 {[%clk 0:02:15]} 6. Qxd4 {[%clk 0:02:57]}  Nf6 {[%clk 0:02:16]} 7. Bg5 {[%clk 0:02:56]}  h6 {[%clk 0:02:11]} 8. Bxf6 {[%clk 0:02:55]}  gxf6 {[%clk 0:02:07]} 9. O-O-O {[%clk 0:02:55]}  Be6 {[%clk 0:02:03]} 10. f4 {[%clk 0:02:50]}  Qb6 {[%clk 0:02:03]} 11. Bb5+ {[%clk 0:02:49]}  Bd7 {[%clk 0:01:59]} 12. Bxd7+ {[%clk 0:02:48]}  Kxd7 {[%clk 0:02:00]} 13. Qd3 {[%clk 0:02:47]}  Bg7 {[%clk 0:01:58]} 14. Nd5 {[%clk 0:02:39]}  Qa5 {[%clk 0:01:53]} 15. Kb1 {[%clk 0:02:38]}  Rac8 {[%clk 0:01:53]} 16. Rhf1 {[%clk 0:02:29]}  Qa6 {[%clk 0:01:36]} 17. Qh3+ {[%clk 0:02:18]}  e6 {[%clk 0:01:32]} 18. Rf3 {[%clk 0:02:13]}  Qe2 {[%clk 0:01:22]} 19. Ne3 {[%clk 0:01:57]}  Rxc2 {[%clk 0:01:15]} 20. Ka1 {[%clk 0:01:23]}  Qxd1+ {[%clk 0:01:13]} 21. Nxd1 {[%clk 0:01:23]}  Rc1# {[%clk 0:01:13]} 0-1


[Site "https://www.chess.com"]

[Event "Titled Tuesday Blitz February 07 Early 2023"]
[White "Kirillov, Dmitry"]
[Black "Ambartsumova, Karina"]
[WhiteFideId "34180572"]
[BlackFideId "4166299"]
[WhiteElo "2179"]
[BlackElo "2393"]
[Result "0-1"]
[Round "02"]
[TimeControl "180+2"]
[Date "2023.02.07"]
[WhiteClock "0:00:07"]
[BlackClock "0:00:07"]

1. e4 {[%clk 0:02:59]}  e5 {[%clk 0:03:00]} 2. Nf3 {[%clk 0:02:59]}  Nc6 {[%clk 0:03:00]} 3. Bc4 {[%clk 0:02:59]}  Bc5 {[%clk 0:02:59]} 4. b4 {[%clk 0:02:59]}  Be7 {[%clk 0:02:51]} 5. b5 {[%clk 0:02:26]}  Na5 {[%clk 0:02:49]} 6. Be2 {[%clk 0:02:18]}  Nf6 {[%clk 0:02:37]} 7. d3 {[%clk 0:02:15]}  d5 {[%clk 0:02:19]} 8. Nbd2 {[%clk 0:02:02]}  O-O {[%clk 0:02:11]} 9. O-O {[%clk 0:02:00]}  b6 {[%clk 0:02:03]} 10. Nxe5 {[%clk 0:01:58]}  dxe4 {[%clk 0:02:03]} 11. Bb2 {[%clk 0:01:46]}  Bb7 {[%clk 0:01:55]} 12. Ndc4 {[%clk 0:01:38]}  Nxc4 {[%clk 0:01:54]} 13. dxc4 {[%clk 0:01:34]}  Bd6 {[%clk 0:01:48]} 14. Qd4 {[%clk 0:01:20]}  Re8 {[%clk 0:01:20]} 15. Ng4 {[%clk 0:01:12]}  Re6 {[%clk 0:01:20]} 16. Rad1 {[%clk 0:01:05]}  Qf8 {[%clk 0:01:17]} 17. Ne3 {[%clk 0:00:59]}  Rd8 {[%clk 0:01:13]} 18. Qc3 {[%clk 0:00:52]}  Be5 {[%clk 0:00:51]} 19. Qb3 {[%clk 0:00:52]}  h6 {[%clk 0:00:32]} 20. h3 {[%clk 0:00:46]}  Rxd1 {[%clk 0:00:28]} 21. Rxd1 {[%clk 0:00:46]}  Bxb2 {[%clk 0:00:26]} 22. Qxb2 {[%clk 0:00:46]}  Rd6 {[%clk 0:00:27]} 23. Qe5 {[%clk 0:00:39]}  Rxd1+ {[%clk 0:00:25]} 24. Bxd1 {[%clk 0:00:40]}  Qc5 {[%clk 0:00:19]} 25. Qg3 {[%clk 0:00:23]}  Bc8 {[%clk 0:00:16]} 26. Be2 {[%clk 0:00:22]}  Be6 {[%clk 0:00:16]} 27. Qf4 {[%clk 0:00:19]}  Qd6 {[%clk 0:00:14]} 28. Qh4 {[%clk 0:00:17]}  Qe5 {[%clk 0:00:11]} 29. Qg3 {[%clk 0:00:12]}  Qxg3 {[%clk 0:00:10]} 30. fxg3 {[%clk 0:00:13]}  Kf8 {[%clk 0:00:10]} 31. Kf2 {[%clk 0:00:13]}  Ke7 {[%clk 0:00:11]} 32. g4 {[%clk 0:00:14]}  Kd6 {[%clk 0:00:11]} 33. Kg3 {[%clk 0:00:15]}  Kc5 {[%clk 0:00:11]} 34. c3 {[%clk 0:00:15]}  g5 {[%clk 0:00:11]} 35. h4 {[%clk 0:00:14]}  Nd7 {[%clk 0:00:11]} 36. hxg5 {[%clk 0:00:13]}  hxg5 {[%clk 0:00:12]} 37. Nd5 {[%clk 0:00:03]}  Bxd5 {[%clk 0:00:12]} 38. cxd5 {[%clk 0:00:04]}  Kxd5 {[%clk 0:00:12]} 39. Kf2 {[%clk 0:00:04]}  Ne5 {[%clk 0:00:12]} 40. Ke3 {[%clk 0:00:05]}  f6 {[%clk 0:00:11]} 41. g3 {[%clk 0:00:05]}  Nd7 {[%clk 0:00:10]} 42. c4+ {[%clk 0:00:05]}  Ke5 {[%clk 0:00:10]} 43. Bd1 {[%clk 0:00:04]}  Nc5 {[%clk 0:00:11]} 44. Bc2 {[%clk 0:00:05]}  f5 {[%clk 0:00:08]} 45. gxf5 {[%clk 0:00:04]}  Kxf5 {[%clk 0:00:09]} 46. a3 {[%clk 0:00:04]}  Ke5 {[%clk 0:00:09]} 47. g4 {[%clk 0:00:04]}  Nd7 {[%clk 0:00:05]} 48. Bxe4 {[%clk 0:00:05]}  Nf6 {[%clk 0:00:05]} 49. Bf5 {[%clk 0:00:05]}  Ne8 {[%clk 0:00:05]} 50. Kd3 {[%clk 0:00:06]}  Nd6 {[%clk 0:00:05]} 51. a4 {[%clk 0:00:06]}  Nxf5 {[%clk 0:00:05]} 52. gxf5 {[%clk 0:00:06]}  Kxf5 {[%clk 0:00:06]} 53. Kd4 {[%clk 0:00:07]}  g4 {[%clk 0:00:07]} 54. Ke3 {[%clk 0:00:07]}  Ke5 {[%clk 0:00:07]} 55. c5 {[%clk 0:00:07]}  bxc5 {[%clk 0:00:07]} 0-1


[Site "https://www.chess.com"]

[Event "Titled Tuesday Blitz February 07 Early 2023"]
[White "Chor, Kevin"]
[Black "Xie, Bryan"]
[WhiteFideId "2090740"]
[BlackFideId "30941296"]
[WhiteElo "1944"]
[BlackElo "2361"]
[Result "1-0"]
[Round "02"]
[TimeControl "180+2"]
[Date "2023.02.07"]
[WhiteClock "0:00:45"]
[BlackClock "0:00:09"]

1. e4 {[%clk 0:02:59]}  c5 {[%clk 0:01:08]} 2. Nf3 {[%clk 0:02:55]}  e6 {[%clk 0:01:07]} 3. d4 {[%clk 0:02:56]}  cxd4 {[%clk 0:01:08]} 4. Nxd4 {[%clk 0:02:57]}  Nc6 {[%clk 0:01:08]} 5. Nc3 {[%clk 0:02:57]}  Qc7 {[%clk 0:01:06]} 6. Nxc6 {[%clk 0:02:46]}  bxc6 {[%clk 0:01:04]} 7. Bd3 {[%clk 0:02:45]}  Nf6 {[%clk 0:01:03]} 8. O-O {[%clk 0:02:45]}  Be7 {[%clk 0:00:55]} 9. Qe2 {[%clk 0:02:40]}  d5 {[%clk 0:00:53]} 10. Bg5 {[%clk 0:02:30]}  O-O {[%clk 0:00:51]} 11. e5 {[%clk 0:02:12]}  Ne8 {[%clk 0:00:51]} 12. Qh5 {[%clk 0:02:02]}  g6 {[%clk 0:00:47]} 13. Qh6 {[%clk 0:02:01]}  Bxg5 {[%clk 0:00:45]} 14. Qxg5 {[%clk 0:02:02]}  Ng7 {[%clk 0:00:41]} 15. Rae1 {[%clk 0:01:44]}  c5 {[%clk 0:00:37]} 16. h4 {[%clk 0:01:30]}  c4 {[%clk 0:00:33]} 17. Be2 {[%clk 0:01:30]}  Bb7 {[%clk 0:00:30]} 18. h5 {[%clk 0:01:22]}  d4 {[%clk 0:00:28]} 19. Nb5 {[%clk 0:01:19]}  Qc5 {[%clk 0:00:27]} 20. Nd6 {[%clk 0:01:17]}  Bd5 {[%clk 0:00:27]} 21. h6 {[%clk 0:00:57]}  Ne8 {[%clk 0:00:20]} 22. Bg4 {[%clk 0:00:47]}  Nxd6 {[%clk 0:00:08]} 23. exd6 {[%clk 0:00:47]}  f6 {[%clk 0:00:09]} 24. Bxe6+ {[%clk 0:00:45]} 1-0


[Site "https://www.chess.com"]

[Event "Titled Tuesday Blitz February 07 Early 2023"]
[White "Matveeva, Olga"]
[Black "Karttunen, Mika"]
[WhiteFideId "24107018"]
[BlackFideId "502081"]
[WhiteElo "2128"]
[BlackElo "2490"]
[Result "0-1"]
[Round "02"]
[TimeControl "180+2"]
[Date "2023.02.07"]
[WhiteClock "0:00:10"]
[BlackClock "0:00:49"]

1. d4 {[%clk 0:03:00]}  Nf6 {[%clk 0:02:59]} 2. c4 {[%clk 0:03:00]}  e6 {[%clk 0:02:59]} 3. g3 {[%clk 0:03:00]}  Bb4+ {[%clk 0:02:59]} 4. Bd2 {[%clk 0:03:00]}  Qe7 {[%clk 0:02:57]} 5. Nf3 {[%clk 0:02:59]}  O-O {[%clk 0:02:55]} 6. Bg2 {[%clk 0:02:59]}  a5 {[%clk 0:02:54]} 7. O-O {[%clk 0:02:57]}  Bxd2 {[%clk 0:02:49]} 8. Nbxd2 {[%clk 0:02:55]}  d5 {[%clk 0:02:49]} 9. Qc2 {[%clk 0:02:54]}  Nc6 {[%clk 0:02:48]} 10. e3 {[%clk 0:02:51]}  Bd7 {[%clk 0:02:47]} 11. a3 {[%clk 0:02:44]}  a4 {[%clk 0:02:47]} 12. Rac1 {[%clk 0:02:41]}  Rfc8 {[%clk 0:02:45]} 13. Rfe1 {[%clk 0:02:39]}  h6 {[%clk 0:02:43]} 14. e4 {[%clk 0:02:37]}  dxe4 {[%clk 0:02:35]} 15. Nxe4 {[%clk 0:02:38]}  Nxe4 {[%clk 0:02:34]} 16. Qxe4 {[%clk 0:02:38]}  Na5 {[%clk 0:02:34]} 17. Ne5 {[%clk 0:02:24]}  Be8 {[%clk 0:02:28]} 18. Qf4 {[%clk 0:02:13]}  Ra6 {[%clk 0:02:19]} 19. Rc3 {[%clk 0:02:11]}  Rb6 {[%clk 0:02:16]} 20. Re2 {[%clk 0:02:04]}  Rd8 {[%clk 0:02:11]} 21. h4 {[%clk 0:01:49]}  Rb3 {[%clk 0:02:08]} 22. Rxb3 {[%clk 0:01:36]}  Nxb3 {[%clk 0:01:56]} 23. d5 {[%clk 0:01:35]}  Rd6 {[%clk 0:01:37]} 24. Re3 {[%clk 0:01:29]}  b6 {[%clk 0:01:32]} 25. Kh2 {[%clk 0:01:27]}  Qf6 {[%clk 0:01:29]} 26. Nd3 {[%clk 0:01:10]}  Bd7 {[%clk 0:01:22]} 27. Qxf6 {[%clk 0:01:03]}  gxf6 {[%clk 0:01:21]} 28. Nb4 {[%clk 0:00:49]}  e5 {[%clk 0:01:19]} 29. Be4 {[%clk 0:00:44]}  Nc5 {[%clk 0:01:18]} 30. Bc2 {[%clk 0:00:43]}  b5 {[%clk 0:01:13]} 31. cxb5 {[%clk 0:00:40]}  Bxb5 {[%clk 0:01:14]} 32. f4 {[%clk 0:00:39]}  exf4 {[%clk 0:01:11]} 33. gxf4 {[%clk 0:00:38]}  Kf8 {[%clk 0:01:11]} 34. Kg3 {[%clk 0:00:38]}  Nd7 {[%clk 0:01:09]} 35. Rc3 {[%clk 0:00:35]}  Nb6 {[%clk 0:01:05]} 36. Rxc7 {[%clk 0:00:29]}  Nxd5 {[%clk 0:01:05]} 37. Nxd5 {[%clk 0:00:27]}  Rxd5 {[%clk 0:01:06]} 38. Ra7 {[%clk 0:00:26]}  Rd4 {[%clk 0:01:05]} 39. Kf3 {[%clk 0:00:23]}  Rc4 {[%clk 0:00:59]} 40. Bd3 {[%clk 0:00:21]}  Bc6+ {[%clk 0:00:59]} 41. Ke3 {[%clk 0:00:20]}  Rc1 {[%clk 0:00:58]} 42. Kd4 {[%clk 0:00:19]}  Rd1 {[%clk 0:00:53]} 43. Rc7 {[%clk 0:00:18]}  Bb5 {[%clk 0:00:53]} 44. Rc3 {[%clk 0:00:18]}  Ke7 {[%clk 0:00:51]} 45. Ke3 {[%clk 0:00:17]}  Bxd3 {[%clk 0:00:49]} 46. Rxd3 {[%clk 0:00:18]}  Rb1 {[%clk 0:00:47]} 47. Rd2 {[%clk 0:00:18]}  Ke6 {[%clk 0:00:47]} 48. Ke4 {[%clk 0:00:18]}  Re1+ {[%clk 0:00:46]} 49. Kd4 {[%clk 0:00:18]}  Rh1 {[%clk 0:00:47]} 50. Kc5 {[%clk 0:00:17]}  Rxh4 {[%clk 0:00:47]} 51. Rf2 {[%clk 0:00:18]}  Kf5 {[%clk 0:00:46]} 52. Kb5 {[%clk 0:00:16]}  Rxf4 {[%clk 0:00:47]} 53. Rxf4+ {[%clk 0:00:14]}  Kxf4 {[%clk 0:00:47]} 54. Kxa4 {[%clk 0:00:14]}  Ke5 {[%clk 0:00:45]} 55. b4 {[%clk 0:00:09]}  h5 {[%clk 0:00:46]} 56. b5 {[%clk 0:00:09]}  Kd6 {[%clk 0:00:46]} 57. Ka5 {[%clk 0:00:10]}  Kc7 {[%clk 0:00:46]} 58. Ka6 {[%clk 0:00:09]}  Kb8 {[%clk 0:00:46]} 59. Kb6 {[%clk 0:00:09]}  h4 {[%clk 0:00:47]} 60. a4 {[%clk 0:00:09]}  h3 {[%clk 0:00:48]} 61. a5 {[%clk 0:00:09]}  h2 {[%clk 0:00:49]} 62. a6 {[%clk 0:00:10]}  h1=Q {[%clk 0:00:49]} 0-1


[Site "https://www.chess.com"]